Workbook

Sheet pisciculture
C1: Notation sur 10 | D1: les notes s'échelonnent de 0 à 10
C4: Richard Toll | D4: Matam | E4: Niayes | F4: Bakel | G4: Kédougou | H4: Sédhiou | I4: Fatick | J4: Tambacounda
B5: Critères
A6: bénéficiaires | B6: La zone permet au pilote permet de cibler des petits producteurs, des goupes vulnérables les femmes et les jeunes | C6: 9 | D6: 9 | E6: 5 | F6: 9 | G6: 9 | H6: 9 | I6: 9 | J6: 9
B7: Existence d'une demande des acteurs au niveau de la zone | C7: 0 | D7: 0 | E7: 0 | F7: 0 | G7: 0 | H7: 0 | I7: 0 | J7: 0
B8: Présence de bénéficiaires motivés prêts à investir | C8: 0 | D8: 0 | E8: 0 | F8: 0 | G8: 0 | H8: 0 | I8: 0 | J8: 0
A9: Partenaires | B9: Présence d'acteurs organisés comme les coopératives, OP, motivés, dyamiques, inclusifs actifs dans la CDV | C9: 8 | D9: 8 | E9: 8 | F9: 5 | G9: 8 | H9: 8 | I9: 8 | J9: 7
B10: Présence de partenaires qui promeuvent ou non l'application et qui peuvent permettre une synergie et accompagner le pilote et son passage à l'échelle au niveau de la zone (scaling up) | C10: 8 | D10: 4 | E10: 3 | F10: 3 | G10: 8 | H10: 8 | I10: 8 | J10: 8
A11: Conditions favorables | B11: Existence de marché rémunérateur pour les produits issus de l'application | C11: 4 | D11: 5 | E11: 4 | F11: 8 | G11: 8 | H11: 8 | I11: 6 | J11: 8
B12: Existence de fournisseurs de l'application dotés de service après vente de logistique pour la maintenance couvrent la zone | C12: 6 | D12: 5 | E12: 8 | F12: 5 | G12: 4 | H12: 4 | I12: 7 | J12: 8
B13: Présence de services financiers en mesure d'accompagner le pilote | C13: 5 | D13: 7 | E13: 5 | F13: 5 | G13: 5 | H13: 5 | I13: 5 | J13: 6
B14: Initiatives en cours avec d'autres sources d'énergie (diesel, électricité, manuel, etc.) | C14: 8 | D14: 3 | E14: 5 | F14: 3 | G14: 7 | H14: 7 | I14: 6 | J14: 5
A15: Urgence | B15: Degré d'urgence et impact potentiel de l'application sur la CDV et avantage comparatif de la CDV dans la zone par rapport aux autres | C15: 5 | D15: 8 | E15: 5 | F15: 5 | G15: 5 | H15: 5 | I15: 5 | J15: 4
B17: Note globale | C17: =C6*$B$22+C7*$B$23+C8*$B$24+C9*$B$25+C10*$B$26+C11*$B$27+C12*$B$28+C13*$B$29+C15*$B$31+C14*$B$30 -> 172 | D17: =D6*$B$22+D7*$B$23+D8*$B$24+D9*$B$25+D10*$B$26+D11*$B$27+D12*$B$28+D13*$B$29+D15*$B$31+D14*$B$30 -> 154 | E17: 131 | F17: 140 | G17: 174 | H17: 174 | I17: 173 | J17: =J6*$B$22+J7*$B$23+J8*$B$24+J9*$B$25+J10*$B$26+J11*$B$27+J12*$B$28+J13*$B$29+J15*$B$31+J14*$B$30 -> 173
B18: Moyenne pondérée | C18: =C17/B32 -> 6.88 | D18: =D17/B32 -> 6.16 | E18: =E17/B32 -> 5.24 | F18: =F17/B32 -> 5.6 | G18: =G17/B32 -> 6.96 | H18: =H17/B32 -> 6.96 | I18: =I17/B32 -> 6.92 | J18: =J17/B32 -> 6.92
A20: Base du choix | B20: quatre premiers vec une moyenne supérieure à 6/10
A21: Pondération des critères
A22: La zone permet au pilote permet de cibler des petits producteurs, des goupes vulnérables susceptibles les femmes et les jeunes | B22: 5
A23: Existence d'une demande des acteurs au niveau de la zone | B23: 0
A24: Présence de bénéficiaires motivés prêts à investir | B24: 0
A25: Présence d'acteurs organisés comme les coopératives, OP, motivés, dyamiques, inclusifs | B25: 2
A26: Présence de partenaires qui promeuvent ou non l'application et qui peuvent permettre une synergie et accompagner le pilote et son passage à l'échelle au niveau de la zone (scaling up) | B26: 3
A27: Existence de marché rémunérateur pour les produits issus de l'application | B27: 3
A28: Existence de fournisseurs de l'application dotés de service après vente de logistique pour la maintenance couvrent la zone | B28: 3
A29: Présence de services financiers en mesure d'accompagner le pilote | B29: 1
A30: Initiatives en cours avec d'autres sources d'énergie (diesel, électricité, manuel, etc.) | B30: 4
A31: Degré d'urgence | B31: 4
B32: =SUM(B22:B31) -> 25

Sheet Plateforme solaire
C1: Notation sur 10 | D1: les notes s'échelonnent de 0 à 10
C4: Niayes | D4: Saint-Louis | E4: Fatick | F4: Kédougou | G4: Kolda | H4: Matam | I4: Tambacounda | J4: Ziguinchor
B5: Critères
A6: bénéficiaires | B6: La zone permet au pilote permet de cibler des petits producteurs, des goupes vulnérables les femmes et les jeunes | C6: 6 | D6: 8 | E6: 8 | F6: 9 | G6: 8 | H6: 6 | I6: 6 | J6: 6
B7: Existence d'une demande des acteurs au niveau de la zone
B8: Présence de bénéficiaires motivés prêts à investir
A9: Partenaires | B9: Présence d'acteurs organisés comme les coopératives, OP, motivés, dyamiques, inclusifs actifs dans la CDV | C9: 7 | D9: 7 | E9: 8 | F9: 6 | G9: 8 | H9: 4 | I9: 8 | J9: 4
B10: Présence de partenaires qui promeuvent ou non l'application et qui peuvent permettre une synergie et accompagner le pilote et son passage à l'échelle au niveau de la zone (scaling up) | C10: 3 | D10: 4 | E10: 8 | F10: 6 | G10: 8 | H10: 6 | I10: 8 | J10: 8
A11: Conditions favorables | B11: Existence de marché rémunérateur pour les produits issus de l'application | C11: 7 | D11: 6 | E11: 5 | F11: 5 | G11: 5 | H11: 4 | I11: 6 | J11: 5
B12: Existence de fournisseurs de l'application dotés de service après vente de logistique pour la maintenance couvrent la zone | C12: 6 | D12: 6 | E12: 6 | F12: 5 | G12: 5 | H12: 5 | I12: 4 | J12: 6
B13: Présence de services financiers en mesure d'accompagner le pilote | C13: 7 | D13: 7 | E13: 5 | F13: 4 | G13: 5 | H13: 4 | I13: 5 | J13: 6
B14: Initiatives en cours avec d'autres sources d'énergie (diesel, électricité, manuel, etc.) | C14: 6 | D14: 6 | E14: 7 | F14: 5 | G14: 7 | H14: 7 | I14: 7 | J14: 5
A15: Urgence | B15: Degré d'urgence et impact potentiel de l'application sur la CDV et avantage comparatif de la CDV dans la zone par rapport aux autres | C15: 3 | D15: 3 | E15: 5 | F15: 9 | G15: 8 | H15: 8 | I15: 7 | J15: 5
B17: Note globale | C17: =C6*$B$22+C7*$B$23+C8*$B$24+C9*$B$25+C10*$B$26+C11*$B$27+C12*$B$28+C13*$B$29+C15*$B$31+C14*$B$30 -> 135 | D17: =D6*$B$22+D7*$B$23+D8*$B$24+D9*$B$25+D10*$B$26+D11*$B$27+D12*$B$28+D13*$B$29+D15*$B$31+D14*$B$30 -> 145 | E17: 166 | F17: 165 | G17: 175 | H17: 147 | I17: 161 | J17: =J6*$B$22+J7*$B$23+J8*$B$24+J9*$B$25+J10*$B$26+J11*$B$27+J12*$B$28+J13*$B$29+J15*$B$31+J14*$B$30 -> 141
B18: Moyenne pondérée | C18: =C17/B32 -> 5.4 | D18: =D17/B32 -> 5.8 | E18: =E17/B32 -> 6.64 | F18: =F17/B32 -> 6.6 | G18: =G17/B32 -> 7 | H18: =H17/B32 -> 5.88 | I18: =I17/B32 -> 6.44 | J18: =J17/B32 -> 5.64
A20: Base du choix | B20: quatre premiers avec une moyenne supérieure à 6/10
A21: Pondération des critères
A22: La zone permet au pilote permet de cibler des petits producteurs, des goupes vulnérables susceptibles les femmes et les jeunes | B22: 5
A23: Existence d'une demande des acteurs au niveau de la zone | B23: 0
A24: Présence de bénéficiaires motivés prêts à investir | B24: 0
A25: Présence d'acteurs organisés comme les coopératives, OP, motivés, dyamiques, inclusifs | B25: 2
A26: Présence de partenaires qui promeuvent ou non l'application et qui peuvent permettre une synergie et accompagner le pilote et son passage à l'échelle au niveau de la zone (scaling up) | B26: 3
A27: Existence de marché rémunérateur pour les produits issus de l'application | B27: 3
A28: Existence de fournisseurs de l'application dotés de service après vente de logistique pour la maintenance couvrent la zone | B28: 3
A29: Présence de services financiers en mesure d'accompagner le pilote | B29: 1
A30: Initiatives en cours avec d'autres sources d'énergie (diesel, électricité, manuel, etc.) | B30: 4
A31: Degré d'urgence | B31: 4
B32: =SUM(B22:B31) -> 25

Sheet Pompage
C1: Notation sur 10 | D1: les notes s'échelonnent de 0 à 10
C4: Lac de Guiers | D4: Niayes | E4: Kaolack | F4: Sédhiou | G4: Tambacounda | H4: Saint-Louis | I4: Kolda
B5: Critères
A6: bénéficiaires | B6: La zone permet au pilote permet de cibler des petits producteurs, des goupes vulnérables les femmes et les jeunes | C6: 7 | D6: 8 | E6: 6 | F6: 7 | G6: 7 | H6: 5 | I6: 6
B7: Existence d'une demande des acteurs au niveau de la zone | C7: 7 | D7: 8 | E7: 7 | F7: 6 | G7: 7 | H7: 6 | I7: 6
B8: Présence de bénéficiaires motivés prêts à investir | C8: 7 | D8: 7 | E8: 5 | F8: 5 | G8: 7 | H8: 6 | I8: 5
A9: Partenaires | B9: Présence d'acteurs organisés comme les coopératives, OP, motivés, dyamiques, inclusifs actifs dans la CDV | C9: 6 | D9: 7 | E9: 5 | F9: 5 | G9: 6 | H9: 7 | I9: 5
B10: Présence de partenaires qui promeuvent ou non l'application et qui peuvent permettre une synergie et accompagner le pilote et son passage à l'échelle au niveau de la zone (scaling up) | C10: 7 | D10: 7 | E10: 6 | F10: 5 | G10: 6 | H10: 7 | I10: 6
A11: Conditions favorables | B11: Existence de marché rémunérateur pour les produits issus de l'application | C11: 7 | D11: 8 | E11: 6 | F11: 6 | G11: 6 | H11: 6 | I11: 6
B12: Existence de fournisseurs de l'application dotés de service après vente de logistique pour la maintenance couvrent la zone | C12: 6 | D12: 6 | E12: 5 | F12: 5 | G12: 5 | H12: 6 | I12: 5
B13: Présence de services financiers en mesure d'accompagner le pilote | C13: 6 | D13: 7 | E13: 6 | F13: 6 | G13: 6 | H13: 7 | I13: 5
B14: Initiatives en cours avec d'autres sources d'énergie (diesel, électricité, manuel, etc.) | C14: 7 | D14: 7 | E14: 7 | F14: 6 | G14: 5 | H14: 6 | I14: 5
A15: Urgence | B15: Degré d'urgence et impact potentiel de l'application sur la CDV et avantage comparatif de la CDV dans la zone par rapport aux autres | C15: 6 | D15: 6 | E15: 7 | F15: 7 | G15: 8 | H15: 6 | I15: 8
B17: Note globale | C17: =C6*$B$22+C7*$B$23+C8*$B$24+C9*$B$25+C10*$B$26+C11*$B$27+C12*$B$28+C13*$B$29+C15*$B$31+C14*$B$30 -> 165 | D17: =D6*$B$22+D7*$B$23+D8*$B$24+D9*$B$25+D10*$B$26+D11*$B$27+D12*$B$28+D13*$B$29+D15*$B$31+D14*$B$30 -> 176 | E17: 153 | F17: 151 | G17: 156 | H17: 151 | I17: 148
B18: Moyenne pondérée | C18: =C17/B32 -> 6.6 | D18: =D17/B32 -> 7.04 | E18: =E17/B32 -> 6.12 | F18: =F17/B32 -> 6.04 | G18: =G17/B32 -> 6.24 | H18: =H17/B32 -> 6.04 | I18: =I17/B32 -> 5.92
A20: Base du choix | B20: quatre premiers avec une moyenne supérieure à 6/10
A21: Pondération des critères
A22: La zone permet au pilote permet de cibler des petits producteurs, des goupes vulnérables susceptibles les femmes et les jeunes | B22: 5
A23: Existence d'une demande des acteurs au niveau de la zone | B23: 0
A24: Présence de bénéficiaires motivés prêts à investir | B24: 0
A25: Présence d'acteurs organisés comme les coopératives, OP, motivés, dyamiques, inclusifs | B25: 2
A26: Présence de partenaires qui promeuvent ou non l'application et qui peuvent permettre une synergie et accompagner le pilote et son passage à l'échelle au niveau de la zone (scaling up) | B26: 3
A27: Existence de marché rémunérateur pour les produits issus de l'application | B27: 3
A28: Existence de fournisseurs de l'application dotés de service après vente de logistique pour la maintenance couvrent la zone | B28: 3
A29: Présence de services financiers en mesure d'accompagner le pilote | B29: 1
A30: Initiatives en cours avec d'autres sources d'énergie (diesel, électricité, manuel, etc.) | B30: 4
A31: Degré d'urgence | B31: 4
B32: =SUM(B22:B31) -> 25

Sheet Congélateurs solaires
C1: Notation sur 10 | D1: les notes s'échelonnent de 0 à 10
C4: Saint-Louis | D4: Niayes | E4: Fatick | F4: Ziguinchor | G4: Tambacounda | H4: Louga
B5: Critères
A6: bénéficiaires | B6: La zone permet au pilote permet de cibler des petits producteurs, des goupes vulnérables les femmes et les jeunes | C6: 6 | D6: 6 | E6: 7 | F6: 7 | G6: 7 | H6: 7
B7: Existence d'une demande des acteurs au niveau de la zone
B8: Présence de bénéficiaires motivés prêts à investir | C8: 0 | D8: 0 | E8: 0 | F8: 0 | G8: 0 | H8: 0
A9: Partenaires | B9: Présence d'acteurs organisés comme les coopératives, OP, motivés, dyamiques, inclusifs actifs dans la CDV | C9: 5 | D9: 6 | E9: 5 | F9: 5 | G9: 5 | H9: 5
B10: Présence de partenaires qui promeuvent ou non l'application et qui peuvent permettre une synergie et accompagner le pilote et son passage à l'échelle au niveau de la zone (scaling up) | C10: 5 | D10: 6 | E10: 8 | F10: 8 | G10: 8 | H10: 7
A11: Conditions favorables | B11: Existence de marché rémunérateur pour les produits issus de l'application | C11: 7 | D11: 7 | E11: 6 | F11: 7 | G11: 6 | H11: 6
B12: Existence de fournisseurs de l'application dotés de service après vente de logistique pour la maintenance couvrent la zone | C12: 4 | D12: 5 | E12: 4 | F12: 4 | G12: 6 | H12: 4
B13: Présence de services financiers en mesure d'accompagner le pilote | C13: 6 | D13: 5 | E13: 5 | F13: 6 | G13: 5 | H13: 4
B14: Initiatives en cours avec d'autres sources d'énergie (diesel, électricité, manuel, etc.) | C14: 0 | D14: 0 | E14: 0 | F14: 0 | G14: 0 | H14: 0
A15: Urgence | B15: Degré d'urgence et impact potentiel de l'application sur la CDV et avantage comparatif de la CDV dans la zone par rapport aux autres | C15: 6 | D15: 6 | E15: 8 | F15: 7 | G15: 8 | H15: 8
B17: Note globale | C17: =C6*$B$22+C7*$B$23+C8*$B$24+C9*$B$25+C10*$B$26+C11*$B$27+C12*$B$28+C13*$B$29+C15*$B$31+C14*$B$30 -> 118 | D17: =D6*$B$22+D7*$B$23+D8*$B$24+D9*$B$25+D10*$B$26+D11*$B$27+D12*$B$28+D13*$B$29+D15*$B$31+D14*$B$30 -> 125 | E17: 136 | F17: 136 | G17: 142 | H17: 132 | I17: 0 | J17: =J6*$B$22+J7*$B$23+J8*$B$24+J9*$B$25+J10*$B$26+J11*$B$27+J12*$B$28+J13*$B$29+J15*$B$31+J14*$B$30 -> 0
B18: Moyenne pondérée | C18: =C17/B32 -> 4.72 | D18: =D17/B32 -> 5 | E18: =E17/B32 -> 5.44 | F18: =F17/B32 -> 5.44 | G18: =G17/B32 -> 5.68 | H18: =H17/B32 -> 5.28 | I18: =I17/B32 -> 0 | J18: =J17/B32 -> 0
A20: Base du choix | B20: quatre premiers avec une moyenne supérieure à 6/10
A21: Pondération des critères
A22: La zone permet au pilote permet de cibler des petits producteurs, des goupes vulnérables susceptibles les femmes et les jeunes | B22: 5
A23: Existence d'une demande des acteurs au niveau de la zone | B23: 0
A24: Présence de bénéficiaires motivés prêts à investir | B24: 0
A25: Présence d'acteurs organisés comme les coopératives, OP, motivés, dyamiques, inclusifs | B25: 2
A26: Présence de partenaires qui promeuvent ou non l'application et qui peuvent permettre une synergie et accompagner le pilote et son passage à l'échelle au niveau de la zone (scaling up) | B26: 3
A27: Existence de marché rémunérateur pour les produits issus de l'application | B27: 3
A28: Existence de fournisseurs de l'application dotés de service après vente de logistique pour la maintenance couvrent la zone | B28: 3
A29: Présence de services financiers en mesure d'accompagner le pilote | B29: 1
A30: Initiatives en cours avec d'autres sources d'énergie (diesel, électricité, manuel, etc.) | B30: 4
A31: Degré d'urgence | B31: 4
B32: =SUM(B22:B31) -> 25

Sheet Chambres Froides
C1: Notation sur 10 | D1: les notes s'échelonnent de 0 à 10
C4: Saint-Louis | D4: Niayes | E4: Louga | F4: Ziguinchor | G4: Fatick
B5: Critères
A6: bénéficiaires | B6: La zone permet au pilote permet de cibler des petits producteurs, des goupes vulnérables les femmes et les jeunes | C6: 5 | D6: 6 | E6: 5 | F6: 5 | G6: 6
B7: Existence d'une demande des acteurs au niveau de la zone
B8: Présence de bénéficiaires motivés prêts à investir
A9: Partenaires | B9: Présence d'acteurs organisés comme les coopératives, OP, motivés, dyamiques, inclusifs actifs dans la CDV | C9: 6 | D9: 6 | E9: 5 | F9: 5 | G9: 5
B10: Présence de partenaires qui promeuvent ou non l'application et qui peuvent permettre une synergie et accompagner le pilote et son passage à l'échelle au niveau de la zone (scaling up) | C10: 5 | D10: 6 | E10: 5 | F10: 5 | G10: 5
A11: Conditions favorables | B11: Existence de marché rémunérateur pour les produits issus de l'application | C11: 6 | D11: 7 | E11: 7 | F11: 7 | G11: 6
B12: Existence de fournisseurs de l'application dotés de service après vente de logistique pour la maintenance couvrent la zone | C12: 5 | D12: 5 | E12: 5 | F12: 5 | G12: 5
B13: Présence de services financiers en mesure d'accompagner le pilote | C13: 7 | D13: 7 | E13: 6 | F13: 6 | G13: 6
B14: Initiatives en cours avec d'autres sources d'énergie (diesel, électricité, manuel, etc.) | C14: 5 | D14: 6 | E14: 6 | F14: 5 | G14: 6
A15: Urgence | B15: Degré d'urgence et impact potentiel de l'application sur la CDV et avantage comparatif de la CDV dans la zone par rapport aux autres | C15: 4 | D15: 6 | E15: 6 | F15: 5 | G15: 7
B17: Note globale | C17: =C6*$B$22+C7*$B$23+C8*$B$24+C9*$B$25+C10*$B$26+C11*$B$27+C12*$B$28+C13*$B$29+C15*$B$31+C14*$B$30 -> 128 | D17: =D6*$B$22+D7*$B$23+D8*$B$24+D9*$B$25+D10*$B$26+D11*$B$27+D12*$B$28+D13*$B$29+D15*$B$31+D14*$B$30 -> 151 | E17: 140 | F17: 132 | G17: 146 | H17: 0 | I17: 0 | J17: =J6*$B$22+J7*$B$23+J8*$B$24+J9*$B$25+J10*$B$26+J11*$B$27+J12*$B$28+J13*$B$29+J15*$B$31+J14*$B$30 -> 0
B18: Moyenne pondérée | C18: =C17/B32 -> 5.12 | D18: =D17/B32 -> 6.04 | E18: =E17/B32 -> 5.6 | F18: =F17/B32 -> 5.28 | G18: =G17/B32 -> 5.84 | H18: =H17/B32 -> 0 | I18: =I17/B32 -> 0 | J18: =J17/B32 -> 0
A20: Base du choix | B20: quatre premiers avec une moyenne supérieure à 6/10
A21: Pondération des critères
A22: La zone permet au pilote permet de cibler des petits producteurs, des goupes vulnérables susceptibles les femmes et les jeunes | B22: 5
A23: Existence d'une demande des acteurs au niveau de la zone | B23: 0
A24: Présence de bénéficiaires motivés prêts à investir | B24: 0
A25: Présence d'acteurs organisés comme les coopératives, OP, motivés, dyamiques, inclusifs | B25: 2
A26: Présence de partenaires qui promeuvent ou non l'application et qui peuvent permettre une synergie et accompagner le pilote et son passage à l'échelle au niveau de la zone (scaling up) | B26: 3
A27: Existence de marché rémunérateur pour les produits issus de l'application | B27: 3
A28: Existence de fournisseurs de l'application dotés de service après vente de logistique pour la maintenance couvrent la zone | B28: 3
A29: Présence de services financiers en mesure d'accompagner le pilote | B29: 1
A30: Initiatives en cours avec d'autres sources d'énergie (diesel, électricité, manuel, etc.) | B30: 4
A31: Degré d'urgence | B31: 4
B32: =SUM(B22:B31) -> 25

Sheet Machine à glace
C1: Notation sur 10 | D1: les notes s'échelonnent de 0 à 10
C4: Saint-Louis | D4: Niayes | E4: Fatick | F4: Ziguinchor
B5: Critères
A6: bénéficiaires | B6: La zone permet au pilote permet de cibler des petits producteurs, des goupes vulnérables les femmes et les jeunes | C6: 5 | D6: 5 | E6: 6 | F6: 6
B7: Existence d'une demande des acteurs au niveau de la zone | C7: 0 | D7: 0 | E7: 0 | F7: 0
B8: Présence de bénéficiaires motivés prêts à investir | C8: 0 | D8: 0 | E8: 0 | F8: 0
A9: Partenaires | B9: Présence d'acteurs organisés comme les coopératives, OP, motivés, dyamiques, inclusifs actifs dans la CDV | C9: 6 | D9: 6 | E9: 5 | F9: 5
B10: Présence de partenaires qui promeuvent ou non l'application et qui peuvent permettre une synergie et accompagner le pilote et son passage à l'échelle au niveau de la zone (scaling up) | C10: 5 | D10: 5 | E10: 5 | F10: 5
A11: Conditions favorables | B11: Existence de marché rémunérateur pour les produits issus de l'application | C11: 6 | D11: 7 | E11: 7 | F11: 7
B12: Existence de fournisseurs de l'application dotés de service après vente de logistique pour la maintenance couvrent la zone | C12: 5 | D12: 5 | E12: 5 | F12: 5
B13: Présence de services financiers en mesure d'accompagner le pilote | C13: 6 | D13: 6 | E13: 5 | F13: 5
B14: Initiatives en cours avec d'autres sources d'énergie (diesel, électricité, manuel, etc.) | C14: 4 | D14: 4 | E14: 6 | F14: 6
A15: Urgence | B15: Degré d'urgence et impact potentiel de l'application sur la CDV et avantage comparatif de la CDV dans la zone par rapport aux autres | C15: 4 | D15: 4 | E15: 6 | F15: 5
B17: Note globale | C17: =C6*$B$22+C7*$B$23+C8*$B$24+C9*$B$25+C10*$B$26+C11*$B$27+C12*$B$28+C13*$B$29+C15*$B$31+C14*$B$30 -> 123 | D17: =D6*$B$22+D7*$B$23+D8*$B$24+D9*$B$25+D10*$B$26+D11*$B$27+D12*$B$28+D13*$B$29+D15*$B$31+D14*$B$30 -> 126 | E17: 144 | F17: 140 | G17: 0 | H17: 0 | I17: 0 | J17: =J6*$B$22+J7*$B$23+J8*$B$24+J9*$B$25+J10*$B$26+J11*$B$27+J12*$B$28+J13*$B$29+J15*$B$31+J14*$B$30 -> 0
B18: Moyenne pondérée | C18: =C17/B32 -> 4.92 | D18: =D17/B32 -> 5.04 | E18: =E17/B32 -> 5.76 | F18: =F17/B32 -> 5.6 | G18: =G17/B32 -> 0 | H18: =H17/B32 -> 0 | I18: =I17/B32 -> 0 | J18: =J17/B32 -> 0
A20: Base du choix | B20: quatre premiers
A21: Pondération des critères
A22: La zone permet au pilote permet de cibler des petits producteurs, des goupes vulnérables susceptibles les femmes et les jeunes | B22: 5
A23: Existence d'une demande des acteurs au niveau de la zone | B23: 0
A24: Présence de bénéficiaires motivés prêts à investir | B24: 0
A25: Présence d'acteurs organisés comme les coopératives, OP, motivés, dyamiques, inclusifs | B25: 2
A26: Présence de partenaires qui promeuvent ou non l'application et qui peuvent permettre une synergie et accompagner le pilote et son passage à l'échelle au niveau de la zone (scaling up) | B26: 3
A27: Existence de marché rémunérateur pour les produits issus de l'application | B27: 3
A28: Existence de fournisseurs de l'application dotés de service après vente de logistique pour la maintenance couvrent la zone | B28: 3
A29: Présence de services financiers en mesure d'accompagner le pilote | B29: 1
A30: Initiatives en cours avec d'autres sources d'énergie (diesel, électricité, manuel, etc.) | B30: 4
A31: Degré d'urgence | B31: 4
B32: =SUM(B22:B31) -> 25

Sheet Tank à lait
C1: Notation sur 10 | D1: les notes s'échelonnent de 0 à 10
C4: Louga | D4: Matam | E4: Tambacounda | F4: Saint-Louis | G4: Kolda | H4: Sédhiou
B5: Critères
A6: bénéficiaires | B6: La zone permet au pilote permet de cibler des petits producteurs, des goupes vulnérables les femmes et les jeunes | C6: 7 | D6: 7 | E6: 6 | F6: 5 | G6: 7 | H6: 5
B7: Existence d'une demande des acteurs au niveau de la zone | C7: 7 | D7: 7 | E7: 7 | F7: 6 | G7: 7 | H7: 5
B8: Présence de bénéficiaires motivés prêts à investir | C8: 7 | D8: 7 | E8: 6 | F8: 7 | G8: 6 | H8: 5
A9: Partenaires | B9: Présence d'acteurs organisés comme les coopératives, OP, motivés, dyamiques, inclusifs actifs dans la CDV | C9: 7 | D9: 5 | E9: 5 | F9: 7 | G9: 6 | H9: 5
B10: Présence de partenaires qui promeuvent ou non l'application et qui peuvent permettre une synergie et accompagner le pilote et son passage à l'échelle au niveau de la zone (scaling up) | C10: 6 | D10: 4 | E10: 4 | F10: 5 | G10: 6 | H10: 4
A11: Conditions favorables | B11: Existence de marché rémunérateur pour les produits issus de l'application | C11: 7 | D11: 7 | E11: 6 | F11: 7 | G11: 6 | H11: 6
B12: Existence de fournisseurs de l'application dotés de service après vente de logistique pour la maintenance couvrent la zone | C12: 4 | D12: 4 | E12: 4 | F12: 4 | G12: 4 | H12: 4
B13: Présence de services financiers en mesure d'accompagner le pilote | C13: 6 | D13: 5 | E13: 6 | F13: 6 | G13: 5 | H13: 5
B14: Initiatives en cours avec d'autres sources d'énergie (diesel, électricité, manuel, etc.) | C14: 7 | D14: 6 | E14: 6 | F14: 7 | G14: 7 | H14: 5
A15: Urgence | B15: Degré d'urgence et impact potentiel de l'application sur la CDV et avantage comparatif de la CDV dans la zone par rapport aux autres | C15: 7 | D15: 8 | E15: 8 | F15: 5 | G15: 8 | H15: 7
B17: Note globale | C17: =C6*$B$22+C7*$B$23+C8*$B$24+C9*$B$25+C10*$B$26+C11*$B$27+C12*$B$28+C13*$B$29+C15*$B$31+C14*$B$30 -> 162 | D17: =D6*$B$22+D7*$B$23+D8*$B$24+D9*$B$25+D10*$B$26+D11*$B$27+D12*$B$28+D13*$B$29+D15*$B$31+D14*$B$30 -> 151 | E17: 144 | F17: 141 | G17: 160 | H17: 130 | I17: 0 | J17: =J6*$B$22+J7*$B$23+J8*$B$24+J9*$B$25+J10*$B$26+J11*$B$27+J12*$B$28+J13*$B$29+J15*$B$31+J14*$B$30 -> 0
B18: Moyenne pondérée | C18: =C17/B32 -> 6.48 | D18: =D17/B32 -> 6.04 | E18: =E17/B32 -> 5.76 | F18: =F17/B32 -> 5.64 | G18: =G17/B32 -> 6.4 | H18: =H17/B32 -> 5.2 | I18: =I17/B32 -> 0 | J18: =J17/B32 -> 0
A20: Base du choix | B20: quatre premiers avec une moyenne supérieure à 6/10
A21: Pondération des critères
A22: La zone permet au pilote permet de cibler des petits producteurs, des goupes vulnérables susceptibles les femmes et les jeunes | B22: 5
A23: Existence d'une demande des acteurs au niveau de la zone | B23: 0
A24: Présence de bénéficiaires motivés prêts à investir | B24: 0
A25: Présence d'acteurs organisés comme les coopératives, OP, motivés, dyamiques, inclusifs | B25: 2
A26: Présence de partenaires qui promeuvent ou non l'application et qui peuvent permettre une synergie et accompagner le pilote et son passage à l'échelle au niveau de la zone (scaling up) | B26: 3
A27: Existence de marché rémunérateur pour les produits issus de l'application | B27: 3
A28: Existence de fournisseurs de l'application dotés de service après vente de logistique pour la maintenance couvrent la zone | B28: 3
A29: Présence de services financiers en mesure d'accompagner le pilote | B29: 1
A30: Initiatives en cours avec d'autres sources d'énergie (diesel, électricité, manuel, etc.) | B30: 4
A31: Degré d'urgence | B31: 4
B32: =SUM(B22:B31) -> 25

Sheet Moulin Solaire
C1: Notation sur 10 | D1: les notes s'échelonnent de 0 à 10
C4: Kaffrine | D4: Kaolack | E4: Louga | F4: Diourbel | G4: Kolda | H4: Sédhiou | I4: Ziguinchor | J4: Saint-Louis
B5: Critères
A6: bénéficiaires | B6: La zone permet au pilote permet de cibler des petits producteurs, des goupes vulnérables les femmes et les jeunes | C6: 8 | D6: 8 | E6: 6 | F6: 8 | G6: 7 | H6: 7 | I6: 6 | J6: 7
B7: Existence d'une demande des acteurs au niveau de la zone | C7: 7 | D7: 7 | E7: 6 | F7: 7 | G7: 7 | H7: 7 | I7: 6 | J7: 6
B8: Présence de bénéficiaires motivés prêts à investir | C8: 0 | D8: 0 | E8: 0 | F8: 0 | G8: 0 | H8: 0 | I8: 0 | J8: 0
A9: Partenaires | B9: Présence d'acteurs organisés comme les coopératives, OP, motivés, dyamiques, inclusifs actifs dans la CDV | C9: 6 | D9: 6 | E9: 5 | F9: 6 | G9: 5 | H9: 5 | I9: 5 | J9: 7
B10: Présence de partenaires qui promeuvent ou non l'application et qui peuvent permettre une synergie et accompagner le pilote et son passage à l'échelle au niveau de la zone (scaling up) | C10: 7 | D10: 7 | E10: 5 | F10: 6 | G10: 6 | H10: 6 | I10: 5 | J10: 5
A11: Conditions favorables | B11: Existence de marché rémunérateur pour les produits issus de l'application | C11: 7 | D11: 7 | E11: 6 | F11: 7 | G11: 7 | H11: 7 | I11: 6 | J11: 6
B12: Existence de fournisseurs de l'application dotés de service après vente de logistique pour la maintenance couvrent la zone | C12: 6 | D12: 6 | E12: 5 | F12: 6 | G12: 5 | H12: 5 | I12: 5 | J12: 5
B13: Présence de services financiers en mesure d'accompagner le pilote | C13: 5 | D13: 5 | E13: 5 | F13: 5 | G13: 4 | H13: 4 | I13: 5 | J13: 6
B14: Initiatives en cours avec d'autres sources d'énergie (diesel, électricité, manuel, etc.) | C14: 7 | D14: 7 | E14: 6 | F14: 7 | G14: 6 | H14: 6 | I14: 5 | J14: 6
A15: Urgence | B15: Degré d'urgence et impact potentiel de l'application sur la CDV et avantage comparatif de la CDV dans la zone par rapport aux autres | C15: 7 | D15: 6 | E15: 6 | F15: 7 | G15: 8 | H15: 8 | I15: 6 | J15: 5
B17: Note globale | C17: =C6*$B$22+C7*$B$23+C8*$B$24+C9*$B$25+C10*$B$26+C11*$B$27+C12*$B$28+C13*$B$29+C15*$B$31+C14*$B$30 -> 173 | D17: =D6*$B$22+D7*$B$23+D8*$B$24+D9*$B$25+D10*$B$26+D11*$B$27+D12*$B$28+D13*$B$29+D15*$B$31+D14*$B$30 -> 169 | E17: 141 | F17: 170 | G17: 159 | H17: 159 | I17: 137 | J17: =J6*$B$22+J7*$B$23+J8*$B$24+J9*$B$25+J10*$B$26+J11*$B$27+J12*$B$28+J13*$B$29+J15*$B$31+J14*$B$30 -> 147
B18: Moyenne pondérée | C18: =C17/B32 -> 6.92 | D18: =D17/B32 -> 6.76 | E18: =E17/B32 -> 5.64 | F18: =F17/B32 -> 6.8 | G18: =G17/B32 -> 6.36 | H18: =H17/B32 -> 6.36 | I18: =I17/B32 -> 5.48 | J18: =J17/B32 -> 5.88
A20: Base du choix | B20: quatre premiers avec une moyenne supérieure à 6/10
A21: Pondération des critères
A22: La zone permet au pilote permet de cibler des petits producteurs, des goupes vulnérables susceptibles les femmes et les jeunes | B22: 5
A23: Existence d'une demande des acteurs au niveau de la zone | B23: 0
A24: Présence de bénéficiaires motivés prêts à investir | B24: 0
A25: Présence d'acteurs organisés comme les coopératives, OP, motivés, dyamiques, inclusifs | B25: 2
A26: Présence de partenaires qui promeuvent ou non l'application et qui peuvent permettre une synergie et accompagner le pilote et son passage à l'échelle au niveau de la zone (scaling up) | B26: 3
A27: Existence de marché rémunérateur pour les produits issus de l'application | B27: 3
A28: Existence de fournisseurs de l'application dotés de service après vente de logistique pour la maintenance couvrent la zone | B28: 3
A29: Présence de services financiers en mesure d'accompagner le pilote | B29: 1
A30: Initiatives en cours avec d'autres sources d'énergie (diesel, électricité, manuel, etc.) | B30: 4
A31: Degré d'urgence | B31: 4
B32: =SUM(B22:B31) -> 25

Sheet Presse à huile
C1: Notation sur 10 | D1: les notes s'échelonnent de 0 à 10
C4: Kaffrine | D4: Kaolack | E4: Louga | F4: Diourbel | G4: Fatick | H4: Tambacounda | I4: Kolda | J4: Sédhiou
B5: Critères
A6: bénéficiaires | B6: La zone permet au pilote permet de cibler des petits producteurs, des goupes vulnérables les femmes et les jeunes | C6: 7 | D6: 8 | E6: 6 | F6: 8 | G6: 7 | H6: 7 | I6: 7 | J6: 7
B7: Existence d'une demande des acteurs au niveau de la zone | C7: 7 | D7: 7 | E7: 5 | F7: 7 | G7: 5 | H7: 6 | I7: 6 | J7: 6
B8: Présence de bénéficiaires motivés prêts à investir
A9: Partenaires | B9: Présence d'acteurs organisés comme les coopératives, OP, motivés, dyamiques, inclusifs actifs dans la CDV | C9: 6 | D9: 6 | E9: 5 | F9: 6 | G9: 6 | H9: 5 | I9: 5 | J9: 5
B10: Présence de partenaires qui promeuvent ou non l'application et qui peuvent permettre une synergie et accompagner le pilote et son passage à l'échelle au niveau de la zone (scaling up) | C10: 6 | D10: 6 | E10: 5 | F10: 5 | G10: 5 | H10: 6 | I10: 5 | J10: 5
A11: Conditions favorables | B11: Existence de marché rémunérateur pour les produits issus de l'application | C11: 7 | D11: 7 | E11: 6 | F11: 7 | G11: 6 | H11: 6 | I11: 6 | J11: 6
B12: Existence de fournisseurs de l'application dotés de service après vente de logistique pour la maintenance couvrent la zone | C12: 5 | D12: 5 | E12: 4 | F12: 5 | G12: 5 | H12: 5 | I12: 5 | J12: 5
B13: Présence de services financiers en mesure d'accompagner le pilote | C13: 5 | D13: 5 | E13: 5 | F13: 5 | G13: 5 | H13: 5 | I13: 5 | J13: 5
B14: Initiatives en cours avec d'autres sources d'énergie (diesel, électricité, manuel, etc.) | C14: 7 | D14: 7 | E14: 5 | F14: 7 | G14: 6 | H14: 6 | I14: 7 | J14: 7
A15: Urgence | B15: Degré d'urgence et impact potentiel de l'application sur la CDV et avantage comparatif de la CDV dans la zone par rapport aux autres | C15: 6 | D15: 6 | E15: 6 | F15: 6 | G15: 6 | H15: 7 | I15: 7 | J15: 7
B17: Note globale | C17: =C6*$B$22+C7*$B$23+C8*$B$24+C9*$B$25+C10*$B$26+C11*$B$27+C12*$B$28+C13*$B$29+C15*$B$31+C14*$B$30 -> 158 | D17: =D6*$B$22+D7*$B$23+D8*$B$24+D9*$B$25+D10*$B$26+D11*$B$27+D12*$B$28+D13*$B$29+D15*$B$31+D14*$B$30 -> 163 | E17: 134 | F17: 160 | G17: 148 | H17: 153 | I17: 154 | J17: =J6*$B$22+J7*$B$23+J8*$B$24+J9*$B$25+J10*$B$26+J11*$B$27+J12*$B$28+J13*$B$29+J15*$B$31+J14*$B$30 -> 154
B18: Moyenne pondérée | C18: =C17/B32 -> 6.32 | D18: =D17/B32 -> 6.52 | E18: =E17/B32 -> 5.36 | F18: =F17/B32 -> 6.4 | G18: =G17/B32 -> 5.92 | H18: =H17/B32 -> 6.12 | I18: =I17/B32 -> 6.16 | J18: =J17/B32 -> 6.16
A20: Base du choix | B20: quatre premiers avec une moyenne supérieure à 6/10
A21: Pondération des critères
A22: La zone permet au pilote permet de cibler des petits producteurs, des goupes vulnérables susceptibles les femmes et les jeunes | B22: 5
A23: Existence d'une demande des acteurs au niveau de la zone | B23: 0
A24: Présence de bénéficiaires motivés prêts à investir | B24: 0
A25: Présence d'acteurs organisés comme les coopératives, OP, motivés, dyamiques, inclusifs | B25: 2
A26: Présence de partenaires qui promeuvent ou non l'application et qui peuvent permettre une synergie et accompagner le pilote et son passage à l'échelle au niveau de la zone (scaling up) | B26: 3
A27: Existence de marché rémunérateur pour les produits issus de l'application | B27: 3
A28: Existence de fournisseurs de l'application dotés de service après vente de logistique pour la maintenance couvrent la zone | B28: 3
A29: Présence de services financiers en mesure d'accompagner le pilote | B29: 1
A30: Initiatives en cours avec d'autres sources d'énergie (diesel, électricité, manuel, etc.) | B30: 4
A31: Degré d'urgence | B31: 4
B32: =SUM(B22:B31) -> 25

Sheet Couveuse Solaire
C1: Notation sur 10 | D1: les notes s'échelonnent de 0 à 10
C4: Louga | D4: Kolda | E4: Kaolack | F4: Thiès | G4: Diourbel
B5: Critères
A6: bénéficiaires | B6: La zone permet au pilote permet de cibler des petits producteurs, des goupes vulnérables les femmes et les jeunes | C6: 7 | D6: 7 | E6: 6 | F6: 7 | G6: 6
B7: Existence d'une demande des acteurs au niveau de la zone
B8: Présence de bénéficiaires motivés prêts à investir
A9: Partenaires | B9: Présence d'acteurs organisés comme les coopératives, OP, motivés, dyamiques, inclusifs actifs dans la CDV | C9: 6 | D9: 5 | E9: 7 | F9: 7 | G9: 6
B10: Présence de partenaires qui promeuvent ou non l'application et qui peuvent permettre une synergie et accompagner le pilote et son passage à l'échelle au niveau de la zone (scaling up) | C10: 6 | D10: 6 | E10: 7 | F10: 7 | G10: 6
A11: Conditions favorables | B11: Existence de marché rémunérateur pour les produits issus de l'application | C11: 6 | D11: 6 | E11: 6 | F11: 7 | G11: 6
B12: Existence de fournisseurs de l'application dotés de service après vente de logistique pour la maintenance couvrent la zone | C12: 5 | D12: 4 | E12: 5 | F12: 5 | G12: 5
B13: Présence de services financiers en mesure d'accompagner le pilote | C13: 6 | D13: 5 | E13: 6 | F13: 7 | G13: 6
B14: Initiatives en cours avec d'autres sources d'énergie (diesel, électricité, manuel, etc.) | C14: 6 | D14: 5 | E14: 6 | F14: 7 | G14: 6
A15: Urgence | B15: Degré d'urgence et impact potentiel de l'application sur la CDV et avantage comparatif de la CDV dans la zone par rapport aux autres | C15: 6 | D15: 7 | E15: 6 | F15: 5 | G15: 6
B17: Note globale | C17: =C6*$B$22+C7*$B$23+C8*$B$24+C9*$B$25+C10*$B$26+C11*$B$27+C12*$B$28+C13*$B$29+C15*$B$31+C14*$B$30 -> 152 | D17: =D6*$B$22+D7*$B$23+D8*$B$24+D9*$B$25+D10*$B$26+D11*$B$27+D12*$B$28+D13*$B$29+D15*$B$31+D14*$B$30 -> 146 | E17: 152 | F17: 161 | G17: 147 | H17: 0 | I17: 0 | J17: =J6*$B$22+J7*$B$23+J8*$B$24+J9*$B$25+J10*$B$26+J11*$B$27+J12*$B$28+J13*$B$29+J15*$B$31+J14*$B$30 -> 0
B18: Moyenne pondérée | C18: =C17/B32 -> 6.08 | D18: =D17/B32 -> 5.84 | E18: =E17/B32 -> 6.08 | F18: =F17/B32 -> 6.44 | G18: =G17/B32 -> 5.88 | H18: =H17/B32 -> 0 | I18: =I17/B32 -> 0 | J18: =J17/B32 -> 0
A20: Base du choix | B20: quatre premiers avec une moyenne supérieure à 6/10
A21: Pondération des critères
A22: La zone permet au pilote permet de cibler des petits producteurs, des goupes vulnérables susceptibles les femmes et les jeunes | B22: 5
A23: Existence d'une demande des acteurs au niveau de la zone | B23: 0
A24: Présence de bénéficiaires motivés prêts à investir | B24: 0
A25: Présence d'acteurs organisés comme les coopératives, OP, motivés, dyamiques, inclusifs | B25: 2
A26: Présence de partenaires qui promeuvent ou non l'application et qui peuvent permettre une synergie et accompagner le pilote et son passage à l'échelle au niveau de la zone (scaling up) | B26: 3
A27: Existence de marché rémunérateur pour les produits issus de l'application | B27: 3
A28: Existence de fournisseurs de l'application dotés de service après vente de logistique pour la maintenance couvrent la zone | B28: 3
A29: Présence de services financiers en mesure d'accompagner le pilote | B29: 1
A30: Initiatives en cours avec d'autres sources d'énergie (diesel, électricité, manuel, etc.) | B30: 4
A31: Degré d'urgence | B31: 4
B32: =SUM(B22:B31) -> 25
